bitfinex-derivatives/quotes_BTCF0:USTF0_20250315
["timestamp","ask_amount","ask_price","bid_price","bid_amount"]
[1742011809109,0.27276102,84437.0,84436.0,0.3417]
[1742011809416,0.27276102,84437.0,84436.0,0.3317]
[1742011809913,0.27276102,84437.0,84436.0,0.0617]
[1742011810218,0.27276102,84437.0,84436.0,0.3317]
[1742011810620,0.27276102,84437.0,84436.0,0.4501305]
[1742011811014,0.38704102,84437.0,84436.0,0.4501305]
[1742011811621,0.38704102,84437.0,84436.0,0.4601305]
[1742011812011,0.37511548,84437.0,84436.0,0.4601305]
[1742011812609,0.37511548,84437.0,84436.0,0.4101305]
[1742011812921,0.37511548,84437.0,84436.0,0.1801305]
[1742011813223,0.38675103,84437.0,84436.0,0.3117]
[1742011813434,0.38675103,84437.0,84436.0,0.0617]
[1742011813626,0.38675103,84437.0,84436.0,0.3117]
[1742011813924,0.38675103,84437.0,84436.0,0.0617]
[1742011814127,0.38675103,84437.0,84436.0,0.3317]
[1742011814817,0.38675103,84437.0,84436.0,0.1801305]
[1742011815014,0.38675103,84437.0,84436.0,0.3317]
[1742011815215,0.38675103,84437.0,84436.0,0.1801305]
[1742011815415,0.38675103,84437.0,84436.0,0.3117]
[1742011815611,0.38675103,84437.0,84436.0,0.0617]
[1742011815826,0.38675103,84437.0,84436.0,0.2917]
[1742011816026,0.38675103,84437.0,84436.0,0.3317]
[1742011816921,0.38675103,84437.0,84436.0,0.3417]
[1742011817124,0.38675103,84437.0,84436.0,0.2917]
[1742011818822,0.38675103,84437.0,84436.0,0.0617]
[1742011820331,0.38675103,84437.0,84436.0,0.3117]
[1742011829826,0.38675103,84437.0,84436.0,0.0617]
[1742011830033,0.38675103,84437.0,84436.0,0.3017]
[1742011830233,0.38675103,84437.0,84436.0,0.3317]
[1742011830535,0.1184459,84425.0,84424.0,0.4792455]
[1742011831335,0.1184459,84425.0,84424.0,0.7092455]
[1742011831833,0.1838459,84425.0,84424.0,0.7092455]
[1742011832041,0.1878459,84425.0,84424.0,0.7408455]
[1742011832339,0.1908459,84425.0,84424.0,0.5108455]
[1742011832526,0.1908459,84425.0,84424.0,0.7708455]
[1742011832726,0.1908459,84425.0,84424.0,0.7508455]
[1742011832926,0.1878459,84425.0,84424.0,0.78221832]
[1742011833128,0.1918459,84425.0,84424.0,0.78221832]
[1742011833332,0.1918459,84425.0,84424.0,0.51221832]
[1742011833734,0.1918459,84425.0,84424.0,0.8523455]
[1742011833940,0.1918459,84425.0,84424.0,0.85396596]
[1742011834331,0.1918459,84425.0,84424.0,0.80396596]
[1742011834533,0.1918459,84425.0,84424.0,0.84396596]
[1742011834927,0.1908459,84425.0,84424.0,0.84396596]
[1742011835125,0.1898459,84425.0,84424.0,0.57396596]
[1742011835331,0.1898459,84425.0,84424.0,0.82396596]
[1742011835531,0.1898459,84425.0,84424.0,0.57396596]
[1742011836135,0.1898459,84425.0,84424.0,1.05396596]
[1742011836343,0.1898459,84425.0,84424.0,0.45552046]
[1742011836640,0.1898459,84425.0,84424.0,0.57396776]
[1742011837036,0.1898459,84425.0,84424.0,0.83396776]
[1742011837337,0.1898459,84425.0,84424.0,0.81396776]
[1742011837937,0.0714,84425.0,84424.0,0.85396776]
[1742011838153,0.0714,84425.0,84424.0,1.08396776]
[1742011838336,0.006,84425.0,84424.0,1.33396776]
[1742011838736,0.007,84425.0,84424.0,1.33396776]
[1742011839042,0.007,84425.0,84424.0,1.34396776]
[1742011839540,0.005,84425.0,84424.0,0.82396776]
[1742011839739,0.002,84425.0,84424.0,1.32396776]
[1742011839930,0.006,84425.0,84424.0,1.32396776]
[1742011840132,0.1244459,84425.0,84424.0,0.82396776]
[1742011840333,0.1244459,84425.0,84424.0,1.08396776]
[1742011840642,0.1214459,84425.0,84424.0,1.08396776]
[1742011841032,0.1204459,84425.0,84424.0,0.82396776]
[1742011841237,0.003,84425.0,84424.0,0.82396776]
[1742011841543,0.003,84425.0,84424.0,1.34396776]
[1742011841738,0.002,84425.0,84424.0,0.82396776]
[1742011841934,0.003,84425.0,84424.0,1.28396776]
[1742011842441,0.003,84425.0,84424.0,1.33396776]
[1742011844044,0.002,84425.0,84424.0,1.33396776]
[1742011844241,0.003,84425.0,84424.0,1.33396776]
[1742011844848,0.003,84425.0,84424.0,0.82396776]
[1742011845145,0.003,84425.0,84424.0,0.57396776]
[1742011845342,0.003,84425.0,84424.0,1.32396776]
[1742011845533,0.003,84425.0,84424.0,1.37396776]
[1742011845940,0.003,84425.0,84424.0,1.35396776]
[1742011846246,0.003,84425.0,84424.0,1.10396776]
[1742011846444,0.003,84425.0,84424.0,1.34396776]
[1742011846744,0.003,84425.0,84424.0,1.31396776]
[1742011846933,0.1837459,84425.0,84424.0,1.31396776]
[1742011847338,0.1837459,84425.0,84424.0,1.04396776]
[1742011847736,0.1837459,84425.0,84424.0,1.10396776]
[1742011848132,0.0653,84425.0,84424.0,0.81396776]
[1742011848336,0.0653,84425.0,84424.0,1.07396776]
[1742011848759,0.0653,84425.0,84424.0,1.07503722]
[1742011848959,0.0653,84425.0,84424.0,1.10503722]
[1742011849148,0.0653,84425.0,84424.0,1.35503722]
[1742011849349,0.0653,84425.0,84424.0,1.08558822]
[1742011849740,0.0653,84425.0,84424.0,1.07558822]
[1742011850446,0.0653,84425.0,84424.0,1.06558822]
[1742011850753,0.1817459,84425.0,84424.0,1.06558822]
[1742011850951,0.0653,84425.0,84424.0,0.81558822]
[1742011851153,0.0653,84425.0,84424.0,1.09558822]
[1742011851455,0.1837459,84425.0,84424.0,1.09558822]
[1742011851648,0.1837459,84425.0,84424.0,1.11558822]
[1742011852252,0.1847459,84425.0,84424.0,1.06558822]
[1742011852646,0.1847459,84425.0,84424.0,0.83558822]
[1742011852847,0.1847459,84425.0,84424.0,0.57558822]
[1742011853046,0.1847459,84425.0,84424.0,0.84558822]
[1742011853262,0.2165459,84425.0,84424.0,0.82558822]
[1742011853465,0.2165459,84425.0,84424.0,0.57558822]
[1742011853663,0.2165459,84425.0,84424.0,0.75248822]
[1742011853858,0.2165459,84425.0,84424.0,0.72248822]
[1742011854263,0.2165459,84425.0,84424.0,0.73248822]
[1742011854464,0.2165459,84425.0,84424.0,0.81518822]
[1742011854658,0.2165459,84425.0,84424.0,0.78518822]
[1742011854863,0.2165459,84425.0,84424.0,0.54518822]
[1742011855061,0.2125459,84425.0,84424.0,0.75248822]
[1742011855267,0.2175459,84425.0,84424.0,0.76248822]
[1742011855466,0.2175459,84425.0,84424.0,0.48248822]
[1742011855766,0.2185459,84425.0,84424.0,0.71356803]
[1742011856466,0.2185459,84425.0,84424.0,0.73410868]
[1742011856663,0.2185459,84425.0,84424.0,0.79700868]
[1742011856864,0.0683,84425.0,84424.0,0.82930868]
[1742011857067,0.0683,84425.0,84424.0,1.09020868]
[1742011857266,0.0683,84425.0,84424.0,0.58020868]
[1742011857461,0.0673,84425.0,84424.0,1.10020868]
[1742011857863,0.0643,84425.0,84424.0,1.10020868]
[1742011858072,0.0653,84425.0,84424.0,1.08020868]
[1742011858266,0.0653,84425.0,84424.0,1.09020868]
[1742011858573,0.1837459,84425.0,84424.0,1.09020868]
[1742011858768,0.1837459,84425.0,84424.0,1.11020868]
[1742011859077,0.1837459,84425.0,84424.0,1.08020868]
[1742011859376,0.1837459,84425.0,84424.0,1.09020868]
[1742011859579,0.1837459,84425.0,84424.0,1.07020868]
[1742011859763,0.3955115,84425.0,84424.0,1.07020868]
[1742011859966,0.3955115,84425.0,84424.0,0.58020868]
[1742011860163,0.3955115,84425.0,84424.0,1.09020868]
[1742011860666,0.2770656,84425.0,84424.0,0.91020868]
[1742011860866,0.2770656,84425.0,84424.0,1.10020868]
[1742011861271,0.2770656,84425.0,84424.0,0.86020868]
[1742011861475,0.2770656,84425.0,84424.0,1.10020868]
[1742011861679,0.2750656,84425.0,84424.0,1.10020868]
[1742011861862,0.2760656,84425.0,84424.0,1.10020868]
[1742011862067,0.2770656,84425.0,84424.0,1.10020868]
[1742011862267,0.2770656,84425.0,84424.0,1.14020868]
[1742011862570,0.3955115,84425.0,84424.0,0.86020868]
[1742011862775,0.1837459,84425.0,84424.0,1.10020868]
[1742011863281,0.1837459,84425.0,84424.0,0.86020868]
[1742011863470,0.1837459,84425.0,84424.0,1.12041888]
[1742011864179,0.1827459,84425.0,84424.0,1.12041888]
[1742011864380,0.1837459,84425.0,84424.0,1.12041888]
[1742011864778,0.1837459,84425.0,84424.0,1.38041888]
[1742011864974,0.1837459,84425.0,84424.0,1.36041888]
[1742011865183,0.0653,84425.0,84424.0,1.36041888]
[1742011865887,0.0663,84425.0,84424.0,1.36041888]
[1742011867483,0.1847459,84425.0,84424.0,1.36041888]
[1742011867680,0.1847459,84425.0,84424.0,1.36150123]
[1742011867878,0.1827459,84425.0,84424.0,1.36150123]
[1742011868087,0.1847459,84425.0,84424.0,0.48540123]
[1742011868277,0.1847459,84425.0,84424.0,0.76540123]
[1742011868477,0.2160459,84425.0,84424.0,0.74540123]
[1742011868870,0.2160459,84425.0,84424.0,0.77540123]
[1742011869074,0.2160459,84425.0,84424.0,0.75540123]
[1742011869373,0.2160459,84425.0,84424.0,0.71540123]
[1742011869680,0.2160459,84425.0,84424.0,0.48540123]
[1742011869877,0.2160459,84425.0,84424.0,0.79040123]
[1742011870190,0.2160459,84425.0,84424.0,0.55040123]
[1742011870376,0.2160459,84425.0,84424.0,1.08040123]
[1742011870573,0.2160459,84425.0,84424.0,1.03040123]
[1742011870774,0.2160459,84425.0,84424.0,1.06040123]
[1742011871769,0.2160459,84425.0,84424.0,1.04040123]
[1742011872170,0.2160459,84425.0,84424.0,1.09040123]
[1742011872684,0.2160459,84425.0,84424.0,0.55040123]
[1742011872887,0.2160459,84425.0,84424.0,1.08040123]
[1742011873185,0.2160459,84425.0,84424.0,1.02040123]
[1742011873388,0.21596114,84425.0,84424.0,1.02040123]
[1742011873686,0.21596114,84425.0,84424.0,1.05040123]
[1742011874672,0.09751524,84425.0,84424.0,1.05040123]
[1742011874887,0.06621524,84425.0,84424.0,0.55040123]
[1742011875181,0.18466114,84425.0,84424.0,1.05040123]
[1742011875883,0.18466114,84425.0,84424.0,1.11040123]
[1742011876084,0.18466114,84425.0,84424.0,1.10040123]
[1742011877378,0.18266114,84425.0,84424.0,1.08040123]
[1742011877579,0.18266114,84425.0,84424.0,0.55040123]
[1742011877580,0.18666114,84425.0,84424.0,0.55040123]
[1742011877778,0.18666114,84425.0,84424.0,1.06040123]
[1742011877989,0.18666114,84425.0,84424.0,1.11040123]
[1742011878385,0.18666114,84425.0,84424.0,0.55040123]
[1742011878584,0.18666114,84425.0,84424.0,1.09040123]
[1742011879891,0.18666114,84425.0,84424.0,1.08040123]
[1742011880482,0.18666114,84425.0,84424.0,0.55040123]
[1742011880684,0.18666114,84425.0,84424.0,1.09040123]
[1742011880877,0.18666114,84425.0,84424.0,0.55040123]
[1742011881084,0.18666114,84425.0,84424.0,1.08040123]
[1742011881285,0.18666114,84425.0,84424.0,1.05040123]
[1742011881484,0.18666114,84425.0,84424.0,0.80040123]
[1742011881690,0.18666114,84425.0,84424.0,1.05040123]
[1742011881890,0.18666114,84425.0,84424.0,1.08040123]
[1742011882193,0.18466114,84425.0,84424.0,1.08040123]
[1742011882584,0.18466114,84425.0,84424.0,1.09040123]
[1742011883292,0.18466114,84425.0,84424.0,0.84040123]
[1742011883690,0.18266114,84425.0,84424.0,0.84040123]
[1742011883894,0.18566114,84425.0,84424.0,0.84040123]
[1742011884385,0.18666114,84425.0,84424.0,0.55040123]
[1742011884586,0.18366114,84425.0,84424.0,0.79040123]
[1742011884785,0.18666114,84425.0,84424.0,0.83040123]
[1742011885190,0.18666114,84425.0,84424.0,0.55040123]
[1742011885393,0.18666114,84425.0,84424.0,0.83040123]
[1742011886196,0.18666114,84425.0,84424.0,0.82040123]
[1742011886495,0.18366114,84425.0,84424.0,0.55040123]
[1742011886689,0.18666114,84425.0,84424.0,0.84040123]
[1742011886890,0.18366114,84425.0,84424.0,0.84040123]
[1742011887091,0.18666114,84425.0,84424.0,0.84040123]
[1742011887483,0.18766114,84425.0,84424.0,0.84040123]
[1742011887689,0.18766114,84425.0,84424.0,0.79040123]
[1742011888287,0.18766114,84425.0,84424.0,0.83040123]
[1742011888687,0.18766114,84425.0,84424.0,0.8242473]
[1742011888889,0.18766114,84425.0,84424.0,0.81093481]
[1742011889490,0.18766114,84425.0,84424.0,1.07093481]
[1742011889798,0.06921524,84425.0,84424.0,0.45013481]
[1742011889996,0.06721524,84425.0,84424.0,0.55093481]
[1742011890298,0.06621524,84425.0,84424.0,1.08093481]
[1742011890501,0.06621524,84425.0,84424.0,0.55093481]
[1742011890798,0.06721524,84425.0,84424.0,1.05093481]
[1742011891097,0.06721524,84425.0,84424.0,0.80093481]
[1742011891493,0.06421524,84425.0,84424.0,0.55093481]
[1742011891691,0.18566114,84425.0,84424.0,0.81093481]
[1742011891898,0.18566114,84425.0,84424.0,1.08093481]
[1742011892291,0.18566114,84425.0,84424.0,1.03093481]
[1742011892693,0.18566114,84425.0,84424.0,0.80093481]
[1742011892993,0.18366114,84425.0,84424.0,1.06093481]
[1742011893194,0.18566114,84425.0,84424.0,1.06093481]
[1742011893394,0.18566114,84425.0,84424.0,1.08093481]
[1742011893795,0.18566114,84425.0,84424.0,0.81093481]
[1742011893997,0.18566114,84425.0,84424.0,1.07093481]
[1742011894194,0.18566114,84425.0,84424.0,1.09093481]
[1742011894404,0.18566114,84425.0,84424.0,0.81093481]
[1742011894594,0.18566114,84425.0,84424.0,1.32093481]
[1742011894901,0.06721524,84425.0,84424.0,1.06093481]
[1742011895200,0.06721524,84425.0,84424.0,0.81093481]
[1742011895393,0.18566114,84425.0,84424.0,1.07093481]
[1742011895903,0.18566114,84425.0,84424.0,1.06093481]
[1742011896100,0.18566114,84425.0,84424.0,1.08093481]
[1742011896302,0.18566114,84425.0,84424.0,1.07093481]
[1742011896702,0.18566114,84425.0,84424.0,1.07136067]
[1742011896897,0.18566114,84425.0,84424.0,1.06136067]
[1742011897097,0.18566114,84425.0,84424.0,0.81136067]
[1742011897292,0.18566114,84425.0,84424.0,1.07136067]
[1742011897698,0.18566114,84425.0,84424.0,0.81136067]
[1742011897897,0.18566114,84425.0,84424.0,1.05136067]
[1742011898207,0.18566114,84425.0,84424.0,1.04136067]
[1742011898604,0.18566114,84425.0,84424.0,1.08136067]
[1742011899003,0.06721524,84425.0,84424.0,1.08136067]
[1742011899207,0.06721524,84425.0,84424.0,1.33136067]
[1742011899508,0.06721524,84425.0,84424.0,1.08136067]
[1742011899808,0.06721524,84425.0,84424.0,1.31136067]
[1742011900604,0.06721524,84425.0,84424.0,0.81136067]
[1742011900605,0.18566114,84425.0,84424.0,0.81136067]
[1742011900814,0.18266114,84425.0,84424.0,1.09136067]
[1742011900998,0.18566114,84425.0,84424.0,1.09136067]
[1742011901308,0.18566114,84425.0,84424.0,1.30136067]
[1742011901912,0.18566114,84425.0,84424.0,1.07136067]
[1742011902299,0.18566114,84425.0,84424.0,1.31136067]
[1742011904008,0.18566114,84425.0,84424.0,1.29136067]
[1742011904510,0.18566114,84425.0,84424.0,0.81136067]
[1742011904705,0.18566114,84425.0,84424.0,1.31136067]
[1742011904915,0.18566114,84425.0,84424.0,1.28136067]
[1742011905112,0.18566114,84425.0,84424.0,0.81136067]
[1742011905306,0.18566114,84425.0,84424.0,1.30136067]
[1742011905502,0.18566114,84425.0,84424.0,1.36136067]
[1742011905902,0.18566114,84425.0,84424.0,1.34136067]
[1742011906611,0.18566114,84425.0,84424.0,1.31136067]
[1742011907512,0.18566114,84425.0,84424.0,1.33136067]
[1742011907907,0.06721524,84425.0,84424.0,1.33136067]
[1742011908103,0.06721524,84425.0,84424.0,0.81136067]
[1742011908306,0.06721524,84425.0,84424.0,1.28136067]
[1742011908614,0.06421524,84425.0,84424.0,1.28136067]
[1742011908911,0.18566114,84425.0,84424.0,0.81136067]
[1742011909313,0.18566114,84425.0,84424.0,1.18291337]
[1742011909509,0.18566114,84425.0,84424.0,1.24291337]
[1742011909900,0.18566114,84425.0,84424.0,1.22291337]
[1742011910408,0.18566114,84425.0,84424.0,0.00711337]
[1742011910613,0.21746114,84425.0,84424.0,0.25711337]
[1742011910809,0.21446114,84425.0,84424.0,0.00711337]
[1742011911017,0.57626114,84425.0,84424.0,0.00711337]
[1742011911212,0.0592278,84419.0,84408.0,0.21264974]
[1742011911408,0.4792684,84409.0,84408.0,0.24424974]
[1742011911609,0.4792684,84409.0,84408.0,0.47264974]
[1742011911809,0.4792684,84409.0,84408.0,0.24424974]
[1742011912216,0.5118684,84409.0,84408.0,0.24424974]
[1742011912419,0.5118684,84409.0,84408.0,0.51424974]
[1742011912612,0.5128684,84409.0,84408.0,0.51424974]
[1742011912812,0.5128684,84409.0,84408.0,0.50424974]
[1742011913013,0.5128684,84409.0,84408.0,0.24424974]
[1742011913217,0.5128684,84409.0,84408.0,0.52424974]
[1742011913522,0.5128684,84409.0,84408.0,0.50424974]
[1742011913709,0.5128684,84409.0,84408.0,0.24540899]
[1742011913710,0.52466031,84409.0,84408.0,0.24540899]
[1742011913911,0.52566031,84409.0,84408.0,0.24540899]
[1742011914219,0.52566031,84409.0,84408.0,0.51581974]
[1742011914623,0.52566031,84409.0,84408.0,0.24581974]
[1742011916119,0.52566031,84409.0,84408.0,0.03317]
[1742011917223,0.52566031,84409.0,84408.0,0.1516398]
[1742011919323,0.52566031,84409.0,84408.0,0.4016398]
[1742011919518,0.52566031,84409.0,84408.0,0.1516398]
[1742011919723,0.52566031,84409.0,84408.0,0.15205106]
[1742011920309,0.52566031,84409.0,84408.0,0.42205106]
[1742011920514,0.5138684,84409.0,84408.0,0.15205106]
[1742011920727,0.5138684,84409.0,84408.0,0.38205106]
[1742011921019,0.5138684,84409.0,84408.0,0.38312956]
[1742011921421,0.5138684,84409.0,84408.0,0.3800698]
[1742011921625,0.5138684,84409.0,84408.0,0.15326069]
[1742011921819,0.3954,84409.0,84408.0,0.39326069]
[1742011922014,0.3954,84409.0,84408.0,0.68326069]
[1742011922416,0.0346,84409.0,84408.0,0.68326069]
[1742011922725,0.0346,84409.0,84408.0,0.41326069]
[1742011922924,0.1530684,84409.0,84408.0,0.41326069]
[1742011923122,0.0346,84409.0,84408.0,0.41326069]
[1742011924122,0.0346,84409.0,84408.0,0.95326069]
[1742011924322,0.0346,84409.0,84408.0,0.90326069]
[1742011924624,0.0346,84409.0,84408.0,0.67396069]
[1742011924823,0.0346,84409.0,84408.0,0.44396069]
[1742011925013,0.0346,84409.0,84408.0,0.93396069]
[1742011925415,0.0326,84409.0,84408.0,0.93396069]
[1742011925723,0.0326,84409.0,84408.0,0.97396069]
[1742011926025,0.21146379,84417.0,84416.0,0.1184585]
[1742011926221,0.21146379,84417.0,84416.0,0.6184585]
[1742011926423,0.21146379,84417.0,84416.0,0.7105585]
[1742011926725,0.21146379,84417.0,84416.0,0.73374939]
[1742011926916,0.00017765,84417.0,84416.0,0.73374939]
[1742011927421,0.00017765,84417.0,84416.0,0.73416079]
[1742011927619,0.00017765,84417.0,84416.0,0.74591158]
[1742011927824,0.00017765,84417.0,84416.0,0.97632298]
[1742011928225,0.00017765,84417.0,84416.0,0.49632298]
[1742011928426,0.00017765,84417.0,84416.0,0.73632298]
[1742011928628,0.00017765,84417.0,84416.0,0.48457219]
[1742011929125,0.00117765,84417.0,84416.0,0.48457219]
[1742011929528,0.00117765,84417.0,84416.0,0.73457219]
[1742011929727,0.00117765,84417.0,84416.0,0.21537028]
[1742011929927,0.00117765,84417.0,84416.0,0.46537028]
[1742011930229,0.00117765,84417.0,84416.0,0.75745596]
[1742011930430,0.03257765,84417.0,84416.0,0.48745596]
[1742011930727,0.03357765,84417.0,84416.0,0.76745596]
[1742011930934,0.03357765,84417.0,84416.0,0.49745596]
[1742011931423,0.03357765,84417.0,84416.0,0.75745596]
[1742011932218,0.00117765,84417.0,84416.0,0.98745596]
[1742011932419,0.00117765,84417.0,84416.0,0.96745596]
[1742011932726,0.00017765,84417.0,84416.0,1.00745596]
[1742011932929,0.00117765,84417.0,84416.0,0.76745596]
[1742011933133,0.00117765,84417.0,84416.0,1.02745596]
[1742011933424,0.00117765,84417.0,84416.0,1.05745596]
[1742011933626,0.00117765,84417.0,84416.0,0.78745596]
[1742011933831,0.00117765,84417.0,84416.0,1.05745596]
[1742011934028,0.00117765,84417.0,84416.0,0.78745596]
[1742011934223,0.00117765,84417.0,84416.0,0.49745596]
[1742011934430,0.00117765,84417.0,84416.0,1.00745596]
[1742011934830,0.00117765,84417.0,84416.0,1.03745596]
[1742011935231,0.00117765,84417.0,84416.0,0.49745596]
[1742011935429,0.00117765,84417.0,84416.0,0.49771173]
[1742011935623,0.00117765,84417.0,84416.0,1.02771173]
[1742011935931,0.00117765,84417.0,84416.0,1.00771173]
[1742011936127,5e-08,84417.0,84416.0,0.90771173]
[1742011936320,5e-08,84417.0,84416.0,0.49771173]
[1742011936520,5e-08,84417.0,84416.0,0.49878726]
[1742011936724,5e-08,84417.0,84416.0,1.02878726]
[1742011937124,5e-08,84417.0,84416.0,1.02907685]
[1742011937328,5e-08,84417.0,84416.0,1.01907685]
[1742011938127,5e-08,84417.0,84416.0,0.95907685]
[1742011938328,5e-08,84417.0,84416.0,0.98907685]
[1742011938535,5e-08,84417.0,84416.0,0.96907685]
[1742011939419,5e-08,84417.0,84416.0,1.00907685]
[1742011939626,5e-08,84417.0,84416.0,0.49907685]
[1742011939819,5e-08,84417.0,84416.0,1.03907685]
[1742011940020,5e-08,84417.0,84416.0,0.49907685]
[1742011940228,5e-08,84417.0,84416.0,0.72907685]
[1742011940431,5e-08,84417.0,84416.0,0.49907685]
[1742011940630,5e-08,84417.0,84416.0,1.00907685]
[1742011941130,5e-08,84417.0,84416.0,1.04907685]
[1742011941433,5e-08,84417.0,84416.0,0.77907685]
[1742011941618,5e-08,84417.0,84416.0,1.04907685]
[1742011942024,5e-08,84417.0,84416.0,1.02907685]
[1742011942529,5e-08,84417.0,84416.0,1.02948793]
[1742011943034,5e-08,84417.0,84416.0,1.14368793]
[1742011943234,5e-08,84417.0,84416.0,1.14409901]
[1742011943729,5e-08,84417.0,84416.0,1.16451009]
[1742011944033,5e-08,84417.0,84416.0,0.99031009]
[1742011944225,5e-08,84417.0,84416.0,1.10451009]
[1742011944925,5e-08,84417.0,84416.0,1.01031009]
[1742011945137,5e-08,84417.0,84416.0,1.16451009]
[1742011945328,5e-08,84417.0,84416.0,0.61451009]
[1742011945537,5e-08,84417.0,84416.0,1.13451009]
[1742011945929,5e-08,84417.0,84416.0,0.61451009]
[1742011946130,5e-08,84417.0,84416.0,1.13451009]
[1742011946431,5e-08,84417.0,84416.0,0.61451009]
[1742011946637,5e-08,84417.0,84416.0,1.13451009]
[1742011946951,5e-08,84417.0,84416.0,1.16451009]
[1742011947230,5e-08,84417.0,84416.0,0.50031009]
[1742011947430,5e-08,84417.0,84416.0,1.01031009]
[1742011947633,5e-08,84417.0,84416.0,0.50031009]
[1742011947828,5e-08,84417.0,84416.0,1.00031009]
[1742011949531,5e-08,84417.0,84416.0,0.77031009]
[1742011949736,5e-08,84417.0,84416.0,1.02031009]
[1742011950129,0.11845715,84417.0,84416.0,0.64821009]
[1742011950435,5e-08,84417.0,84416.0,0.64821009]
[1742011950632,5e-08,84417.0,84416.0,0.92821009]
[1742011950832,5e-08,84417.0,84416.0,1.03271009]
[1742011951229,0.06310005,84417.0,84416.0,1.03271009]
[1742011952035,0.06310005,84417.0,84416.0,0.94271009]
[1742011953842,0.06310005,84417.0,84416.0,0.99271009]
[1742011954142,0.06310005,84417.0,84416.0,0.96271009]
[1742011954343,0.06310005,84417.0,84416.0,0.99271009]
[1742011954749,0.06310005,84417.0,84416.0,1.02271009]
[1742011955042,0.06310005,84417.0,84416.0,0.97271009]
[1742011955542,0.06310005,84417.0,84416.0,0.95271009]
[1742011955845,0.06310005,84417.0,84416.0,0.93271009]
[1742011956146,0.06310005,84417.0,84416.0,0.96271009]
[1742011956545,0.06310005,84417.0,84416.0,0.98271009]
[1742011957345,0.06310005,84417.0,84416.0,1.03271009]
[1742011957747,0.06310005,84417.0,84416.0,0.97271009]
[1742011958344,0.06310005,84417.0,84416.0,0.99271009]
[1742011958737,0.06310005,84417.0,84416.0,0.74271009]
[1742011958934,0.06310005,84417.0,84416.0,0.97271009]
[1742011959331,0.06310005,84417.0,84416.0,0.47271009]
[1742011959549,0.06310005,84417.0,84416.0,0.98271009]
[1742011959844,0.06310005,84417.0,84416.0,0.97271009]
[1742011960051,0.06310005,84417.0,84416.0,1.00271009]
[1742011960237,0.06310005,84417.0,84416.0,0.98271009]
[1742011960738,0.06310005,84417.0,84416.0,0.73271009]
[1742011960941,0.06310005,84417.0,84416.0,0.95271009]
[1742011961250,0.06310005,84417.0,84416.0,0.96271009]
[1742011961543,0.06310005,84417.0,84416.0,0.98271009]
[1742011962234,0.06310005,84417.0,84416.0,0.47271009]
[1742011962938,0.06310005,84417.0,84416.0,1.01271009]
[1742011963338,0.06310005,84417.0,84416.0,1.02271009]
[1742011963748,0.06310005,84417.0,84416.0,0.47271009]
[1742011964344,0.06310005,84417.0,84416.0,1.02271009]
[1742011964545,0.06310005,84417.0,84416.0,0.47271009]
[1742011964843,0.06310005,84417.0,84416.0,0.95271009]
[1742011965246,0.06310005,84417.0,84416.0,0.47271009]
[1742011965550,0.06310005,84417.0,84416.0,0.96271009]
[1742011965942,0.06310005,84417.0,84416.0,1.01271009]
[1742011966450,0.06310005,84417.0,84416.0,0.99271009]
[1742011967844,0.06310005,84417.0,84416.0,0.47271009]
[1742011968054,0.06310005,84417.0,84416.0,1.00271009]
[1742011968444,0.06310005,84417.0,84416.0,0.98271009]
[1742011969344,0.06310005,84417.0,84416.0,0.47271009]
[1742011969647,0.06310005,84417.0,84416.0,0.99271009]
[1742011969849,0.06310005,84417.0,84416.0,0.96271009]
[1742011970035,0.06310005,84417.0,84416.0,0.98271009]
[1742011970437,0.06310005,84417.0,84416.0,0.96271009]
[1742011971539,0.06310005,84417.0,84416.0,0.97271009]
[1742011972347,0.06310005,84417.0,84416.0,1.01271009]
[1742011973043,0.06310005,84417.0,84416.0,0.99271009]
[1742011973352,0.06310005,84417.0,84416.0,0.95271009]
[1742011974135,0.06310005,84417.0,84416.0,0.99271009]
[1742011974342,0.06310005,84417.0,84416.0,0.47271009]
[1742011974644,0.06310005,84417.0,84416.0,0.70271009]
[1742011974850,0.06310005,84417.0,84416.0,0.94271009]
[1742011975051,0.06310005,84417.0,84416.0,0.97271009]
[1742011976457,0.06310005,84417.0,84416.0,0.70271009]
[1742011976644,0.06310005,84417.0,84416.0,0.96271009]
[1742011977644,0.06310005,84417.0,84416.0,0.70271009]
[1742011977951,0.06310005,84417.0,84416.0,0.95271009]
[1742011978357,0.06310005,84417.0,84416.0,0.93271009]
[1742011979147,0.06310005,84417.0,84416.0,0.47271009]
[1742011979348,0.06310005,84417.0,84416.0,0.97271009]
[1742011979756,0.06310005,84417.0,84416.0,0.47271009]
[1742011980150,0.06310005,84417.0,84416.0,1.00271009]
[1742011980350,0.18155715,84417.0,84416.0,0.46062441]
[1742011980555,0.18155715,84417.0,84416.0,0.42822441]
[1742011981148,0.18155715,84417.0,84416.0,0.12612441]
[1742011981354,0.18155715,84417.0,84416.0,0.38612441]
[1742011981958,0.18155715,84417.0,84416.0,0.64612441]
[1742011982155,0.06310005,84417.0,84416.0,0.90612441]
[1742011982359,0.06310005,84417.0,84416.0,0.44862441]
[1742011982554,0.06310005,84417.0,84416.0,0.67862441]
[1742011982748,0.06310005,84417.0,84416.0,0.96903473]
[1742011983057,0.06310005,84417.0,84416.0,0.97903473]
[1742011983754,0.18155715,84417.0,84416.0,0.97944505]
[1742011984159,0.06310005,84417.0,84416.0,0.97944505]
[1742011984554,0.18155715,84417.0,84416.0,0.97944505]
[1742011984866,0.18155715,84417.0,84416.0,0.93985543]
[1742011985748,0.18155715,84417.0,84416.0,0.95985543]
[1742011985959,0.18155715,84417.0,84416.0,0.9602453]
[1742011986254,0.18155715,84417.0,84416.0,0.9402453]
[1742011986654,0.06310005,84417.0,84416.0,0.9402453]
[1742011987561,0.06310005,84417.0,84416.0,0.9302453]
[1742011987867,0.18155715,84417.0,84416.0,0.9302453]
[1742011988457,0.18155715,84417.0,84416.0,0.9502453]
[1742011988656,0.06310005,84417.0,84416.0,0.9502453]
[1742011988856,0.06310005,84417.0,84416.0,0.4502453]
[1742011989157,0.06310005,84417.0,84416.0,0.7102453]
[1742011989357,0.06310005,84417.0,84416.0,0.7202453]
[1742011989871,0.06310005,84417.0,84416.0,0.9502453]
[1742011990255,0.06310005,84417.0,84416.0,0.9902453]
[1742011990461,0.06310005,84417.0,84416.0,0.9802453]
[1742011990862,0.06310005,84417.0,84416.0,0.7202453]
[1742011991168,0.06310005,84417.0,84416.0,0.9602453]
[1742011991767,0.0631,84417.0,84416.0,0.9602453]
[1742011991979,0.0641,84417.0,84416.0,0.96065621]
[1742011992667,0.0641,84417.0,84416.0,1.01065621]
[1742011992862,0.0641,84417.0,84416.0,0.73065621]
[1742011993062,0.0641,84417.0,84416.0,0.98106712]
[1742011993570,0.0641,84417.0,84416.0,0.73106712]
[1742011994072,0.0641,84417.0,84416.0,0.73143497]
[1742011994257,0.0641,84417.0,84416.0,1.01143497]
[1742011996574,0.0641,84417.0,84416.0,0.89297647]
[1742011998773,0.0641,84417.0,84416.0,0.86297647]
[1742011999865,0.17648115,84424.0,84416.0,1.13297647]